bitfinex/quotes_BTCUSD_20230108
["timestamp","ask_amount","ask_price","bid_price","bid_amount"]
[1673217557911,2.2710583,16980.0,16979.0,0.74379568]
[1673217560351,2.2710583,16980.0,16979.0,0.04379568]
[1673217561603,2.2709489,16980.0,16979.0,0.74379568]
[1673217567518,2.2709489,16980.0,16979.0,0.04379568]
[1673217568317,2.2709489,16980.0,16979.0,0.74379568]
[1673217569043,2.69702502,16980.0,16979.0,0.74379568]
[1673217569323,3.06496702,16980.0,16979.0,0.74379568]
[1673217569985,2.6388909,16980.0,16979.0,0.74379568]
[1673217570234,2.2709489,16980.0,16979.0,0.74379568]
[1673217572194,2.6388909,16980.0,16979.0,0.74379568]
[1673217573207,2.2709489,16980.0,16979.0,0.74379568]
[1673217574194,2.2709489,16980.0,16979.0,0.04379568]
[1673217574456,2.6388909,16980.0,16979.0,0.04379568]
[1673217575203,2.6388909,16980.0,16979.0,0.74379568]
[1673217575487,2.2709489,16980.0,16979.0,0.74379568]
[1673217581522,2.2709489,16980.0,16979.0,0.04379568]
[1673217582270,2.2709489,16980.0,16979.0,0.74379568]
[1673217586614,2.2709489,16980.0,16979.0,0.74369547]
[1673217588434,2.2709489,16980.0,16979.0,0.04369547]
[1673217589318,2.2709489,16980.0,16979.0,0.74369547]
[1673217589583,1.74064,16980.0,16979.0,0.74369547]
[1673217589854,2.2709489,16980.0,16979.0,0.74369547]
[1673217595309,2.2709489,16980.0,16979.0,0.04369547]
[1673217595931,1.74064,16980.0,16979.0,0.04369547]
[1673217596493,1.74064,16980.0,16979.0,0.74369547]
[1673217598104,1.21751537,16980.0,16979.0,0.74369547]
[1673217598346,1.65944198,16980.0,16979.0,1.96916008]
[1673217598561,1.65944198,16980.0,16979.0,2.33710208]
[1673217598817,2.01297327,16980.0,16979.0,2.92606408]
[1673217599312,1.73847055,16980.0,16979.0,2.92606408]
[1673217599560,1.5616855,16980.0,16979.0,3.09976408]
[1673217600197,1.73847055,16980.0,16979.0,3.09976408]
[1673217600363,1.56159341,16980.0,16979.0,3.09976408]
[1673217600620,1.73847055,16980.0,16979.0,3.09976408]
[1673217601079,1.56159389,16980.0,16979.0,3.09976408]
[1673217601296,1.55637289,16980.0,16979.0,3.09976408]
[1673217604016,1.55637289,16980.0,16979.0,2.92606408]
[1673217604264,1.55637289,16980.0,16979.0,2.55812208]
[1673217606297,1.3794725,16980.0,16979.0,2.55812208]
[1673217608624,1.3794725,16980.0,16979.0,2.92606408]
[1673217609662,1.3794725,16980.0,16979.0,2.55812208]
[1673217610195,1.3794725,16980.0,16979.0,2.85260208]
[1673217610426,1.3794725,16980.0,16979.0,3.22054408]
[1673217610971,1.11442255,16980.0,16979.0,3.22054408]
[1673217611200,0.05352336,16980.0,16979.0,4.28320608]
[1673217612914,0.05352336,16980.0,16979.0,4.60788828]
[1673217613675,0.05352336,16980.0,16979.0,4.28320608]
[1673217613919,0.44709236,16982.0,16979.0,4.27565061]
[1673217614164,0.18204241,16982.0,16980.0,0.941642]
[1673217614414,0.44709236,16982.0,16981.0,1.545728]
[1673217614661,1.33122578,16982.0,16981.0,1.177786]
[1673217615138,1.06617583,16982.0,16981.0,1.177786]
[1673217615433,1.06617583,16982.0,16981.0,1.877786]
[1673217615434,0.18204241,16982.0,16981.0,1.877786]
[1673217615706,0.18204241,16982.0,16981.0,2.245728]
[1673217615950,0.18204241,16982.0,16981.0,1.877786]
[1673217616196,0.18604241,16982.0,16981.0,1.877786]
[1673217616452,1.06617492,16982.0,16981.0,2.245728]
[1673217616700,1.07017492,16982.0,16981.0,1.988786]
[1673217616943,0.18604241,16982.0,16981.0,1.988786]
[1673217617189,1.07017729,16982.0,16981.0,1.988786]
[1673217617433,0.18604241,16982.0,16981.0,1.988786]
[1673217617694,0.18604241,16982.0,16981.0,2.356728]
[1673217621675,0.18604241,16982.0,16981.0,1.656728]
[1673217621923,0.18604241,16982.0,16981.0,1.288786]
[1673217622667,0.18604241,16982.0,16981.0,1.988786]
[1673217624202,0.18604241,16982.0,16981.0,2.356728]
[1673217628748,0.18604241,16982.0,16981.0,1.656728]
[1673217629006,0.18604241,16982.0,16981.0,1.288786]
[1673217629815,0.18604241,16982.0,16981.0,1.988786]
[1673217630325,1.33522947,16982.0,16981.0,1.988786]
[1673217630582,0.18604241,16982.0,16981.0,1.988786]
[1673217631075,0.18604241,16982.0,16981.0,2.356728]
[1673217631787,1.07017747,16982.0,16981.0,1.988786]
[1673217632048,0.18604241,16982.0,16981.0,1.988786]
[1673217632290,1.33522981,16982.0,16981.0,2.356728]
[1673217633271,1.07017986,16982.0,16981.0,3.63150454]
[1673217633542,0.00941151,16982.0,16981.0,3.63150454]
[1673217633785,0.18604241,16982.0,16981.0,3.63150454]
[1673217635344,0.00941151,16982.0,16981.0,3.63150454]
[1673217636090,0.18604241,16982.0,16981.0,3.63150454]
[1673217636534,0.00941151,16982.0,16981.0,3.63150454]
[1673217637248,0.00941151,16982.0,16981.0,3.80440454]
[1673217638251,0.18604241,16982.0,16981.0,3.80440454]
[1673217639389,0.00941151,16982.0,16981.0,3.80440454]
[1673217639642,0.18604241,16982.0,16981.0,3.80440454]
[1673217639858,0.00941151,16982.0,16981.0,3.80440454]
[1673217640083,0.18604241,16982.0,16981.0,3.80440454]
[1673217641296,0.18604241,16982.0,16981.0,3.10440454]
[1673217641815,0.00941151,16982.0,16981.0,3.10440454]
[1673217642267,0.00941151,16982.0,16981.0,3.80440454]
[1673217642518,0.18604241,16982.0,16981.0,3.80440454]
[1673217642739,0.00941151,16982.0,16981.0,3.80440454]
[1673217644519,0.18604241,16982.0,16981.0,3.80440454]
[1673217645987,0.18604241,16982.0,16981.0,4.09885454]
[1673217647311,1.07012589,16982.0,16981.0,4.09885454]
[1673217648089,1.0701267,16982.0,16981.0,4.09885454]
[1673217648583,0.18604241,16982.0,16981.0,4.09885454]
[1673217649308,1.07012765,16982.0,16981.0,4.09885454]
[1673217649807,0.18604241,16982.0,16981.0,4.09885454]
[1673217654654,0.24508849,16982.0,16981.0,4.09885454]
[1673217654899,1.12916966,16982.0,16981.0,4.09885454]
[1673217656162,1.12916966,16982.0,16981.0,3.39885454]
[1673217656411,0.24508849,16982.0,16981.0,3.39885454]
[1673217656664,1.12916425,16982.0,16981.0,3.39885454]
[1673217656931,1.3942142,16982.0,16981.0,3.10440454]
[1673217657185,1.57111459,16982.0,16981.0,3.80440454]
[1673217658708,1.39424006,16982.0,16981.0,3.80440454]
[1673217658925,1.39424006,16982.0,16981.0,4.09885454]
[1673217659179,1.39424006,16982.0,16981.0,3.80440454]
[1673217659399,1.39424006,16982.0,16981.0,4.09885454]
[1673217660167,1.12919011,16982.0,16981.0,4.09885454]
[1673217660390,0.24511435,16982.0,16981.0,4.39885454]
[1673217660661,0.06835411,16982.0,16981.0,4.39885454]
[1673217660923,0.24501087,16982.0,16981.0,4.39885454]
[1673217661172,0.06835411,16982.0,16981.0,4.39885454]
[1673217661904,0.06835411,16982.0,16981.0,4.09885454]
[1673217662151,0.06835411,16982.0,16981.0,4.39884454]
[1673217662897,0.24501087,16982.0,16981.0,4.09884454]
[1673217663155,0.24501087,16982.0,16981.0,4.39884454]
[1673217663403,0.24501087,16982.0,16981.0,4.09884454]
[1673217664133,0.24501087,16982.0,16981.0,3.80440454]
[1673217664382,0.24501087,16982.0,16981.0,4.39884454]
[1673217664630,0.24501087,16982.0,16981.0,4.09884454]
[1673217665110,0.06835411,16982.0,16981.0,4.09884454]
[1673217665354,0.06835411,16982.0,16981.0,4.39884454]
[1673217665604,0.24501087,16982.0,16981.0,4.09884454]
[1673217667626,0.24501087,16982.0,16981.0,4.39884454]
[1673217667627,0.06835411,16982.0,16981.0,4.39884454]
[1673217667886,0.24501087,16982.0,16981.0,3.39884454]
[1673217668930,0.24501087,16982.0,16981.0,4.09884454]
[1673217669148,0.24501087,16982.0,16981.0,4.39884454]
[1673217671441,0.06835411,16982.0,16981.0,4.39884454]
[1673217673398,0.24501087,16982.0,16981.0,4.39884454]
[1673217673666,0.06835411,16982.0,16981.0,4.39884454]
[1673217673915,0.24501087,16982.0,16981.0,4.39884454]
[1673217674919,0.06835411,16982.0,16981.0,3.69884454]
[1673217675172,0.24501087,16982.0,16981.0,3.69884454]
[1673217675960,0.24501087,16982.0,16981.0,4.39884454]
[1673217676213,1.12907587,16982.0,16981.0,4.09884454]
[1673217677974,0.24501087,16982.0,16981.0,4.09884454]
[1673217681193,0.24501087,16982.0,16981.0,4.39884454]
[1673217681923,0.24501087,16982.0,16981.0,4.09884454]
[1673217683244,0.06835411,16982.0,16981.0,4.57560333]
[1673217684228,0.06835411,16982.0,16981.0,4.74930333]
[1673217686971,0.06835411,16982.0,16981.0,4.45486333]
[1673217687188,0.06835411,16982.0,16981.0,4.74928333]
[1673217689220,0.06835411,16982.0,16981.0,4.04928333]
[1673217690153,0.06835411,16982.0,16981.0,4.74928333]
[1673217691948,0.06835411,16982.0,16981.0,4.57558333]
[1673217694930,0.06835411,16982.0,16981.0,4.28116333]
[1673217695154,0.06835411,16982.0,16981.0,4.57558333]
[1673217696128,0.06835411,16982.0,16981.0,3.87558333]
[1673217696623,0.06835411,16982.0,16981.0,3.69882454]
[1673217696891,0.06835411,16982.0,16981.0,4.39882454]
[1673217697406,0.06835411,16982.0,16981.0,4.57558333]
[1673217702822,0.06835411,16982.0,16981.0,3.87558333]
[1673217703809,0.06835411,16982.0,16981.0,4.57558333]
[1673217705412,0.06835411,16982.0,16981.0,4.54630151]
[1673217705653,0.06835411,16982.0,16981.0,4.84072151]
[1673217708502,0.06835411,16982.0,16981.0,4.57558333]
[1673217708722,0.06835411,16982.0,16981.0,4.84072151]
[1673217709686,0.06835411,16982.0,16981.0,4.14072151]
[1673217710818,0.06835411,16982.0,16981.0,4.84072151]
[1673217712205,0.06835411,16982.0,16981.0,4.57558333]
[1673217712707,0.06835411,16982.0,16981.0,4.84072151]
[1673217714402,0.06835411,16982.0,16981.0,5.34181605]
[1673217716779,0.06835411,16982.0,16981.0,4.64181605]
[1673217717767,0.06835411,16982.0,16981.0,5.34181605]
[1673217721547,0.06835411,16982.0,16981.0,5.33829105]
[1673217723054,0.06835411,16982.0,16981.0,5.3360835]
[1673217723830,0.06835411,16982.0,16981.0,4.6360835]
[1673217724078,0.06835411,16982.0,16981.0,4.13498896]
[1673217724079,0.24501087,16982.0,16981.0,4.13498896]
[1673217724837,0.24501087,16982.0,16981.0,4.56985078]
[1673217725303,0.23501087,16982.0,16981.0,4.56985078]
[1673217728281,0.23501087,16982.0,16981.0,4.27543078]
[1673217728547,0.23501087,16982.0,16981.0,4.83498896]
[1673217728781,0.05835411,16982.0,16981.0,4.83498896]
[1673217729030,0.05835411,16982.0,16981.0,5.34056872]
[1673217729284,0.05835411,16982.0,16981.0,5.3405707]
[1673217729529,0.05835411,16982.0,16981.0,4.83498896]
[1673217729789,0.05835411,16982.0,16981.0,5.34016476]
[1673217730941,0.05835411,16982.0,16981.0,4.13498896]
[1673217731461,0.23501087,16982.0,16981.0,4.13498896]
[1673217731919,0.23501087,16982.0,16981.0,4.56985078]
[1673217733190,0.23501087,16982.0,16981.0,4.55566988]
[1673217734885,0.23501087,16982.0,16981.0,4.82080806]
[1673217735130,0.05835411,16982.0,16981.0,4.82080806]
[1673217735344,0.05835411,16982.0,16981.0,5.33613339]
[1673217737747,0.05835411,16982.0,16981.0,4.63613339]
[1673217739010,0.05835411,16982.0,16981.0,5.33613339]
[1673217739967,0.05835411,16982.0,16981.0,4.82080806]
[1673217740481,0.05835411,16982.0,16981.0,5.33710586]
[1673217741202,0.05835411,16982.0,16981.0,4.82080806]
[1673217741712,0.23501087,16982.0,16981.0,4.82080806]
[1673217742467,0.23501087,16982.0,16981.0,4.55566988]
[1673217743236,0.23501087,16982.0,16981.0,4.82080806]
[1673217744007,0.23501087,16982.0,16981.0,4.55566988]
[1673217744250,0.23501087,16982.0,16981.0,4.82080806]
[1673217744767,0.23501087,16982.0,16981.0,4.25566988]
[1673217745026,1.38410497,16982.0,16981.0,4.25566988]
[1673217745525,1.38410497,16982.0,16981.0,4.07891109]
[1673217748017,1.11905502,16982.0,16981.0,4.07891109]
[1673217750747,0.23501087,16982.0,16981.0,4.07891109]
[1673217750996,0.23501087,16982.0,16981.0,3.37891109]
[1673217751241,0.23501087,16982.0,16981.0,3.55566988]
[1673217751986,0.23501087,16982.0,16981.0,4.25566988]
[1673217753592,0.23501087,16982.0,16981.0,4.07891109]
[1673217755997,0.23501087,16982.0,16981.0,4.25566988]
[1673217756891,0.23501087,16982.0,16981.0,4.07891109]
[1673217757386,0.23501087,16982.0,16981.0,4.25566988]
[1673217757665,0.05835411,16982.0,16981.0,4.55566988]
[1673217758144,0.05835411,16982.0,16981.0,3.85566988]
[1673217758408,0.23501087,16982.0,16981.0,3.85566988]
[1673217758625,0.23501087,16982.0,16981.0,3.55566988]
[1673217758884,0.05835411,16982.0,16981.0,3.85566988]
[1673217759142,0.05835411,16982.0,16981.0,4.55566988]
[1673217759642,0.23501087,16982.0,16981.0,4.55566988]
[1673217760657,0.23501087,16982.0,16981.0,4.25566988]
[1673217761412,0.23501087,16982.0,16981.0,4.55566988]
[1673217761672,0.23501087,16982.0,16981.0,4.25566988]
[1673217761908,0.23501087,16982.0,16981.0,4.55566988]
[1673217764258,0.23501087,16982.0,16981.0,4.25566988]
[1673217764760,0.23501087,16982.0,16981.0,4.25567988]
[1673217764974,0.23501087,16982.0,16981.0,3.55567988]
[1673217765198,0.23501087,16982.0,16981.0,3.85567988]
[1673217765908,0.23501087,16982.0,16981.0,3.85566988]
[1673217766210,0.23501087,16982.0,16981.0,4.55566988]
[1673217767222,0.05835411,16982.0,16981.0,4.55566988]
[1673217768992,0.05835411,16982.0,16981.0,4.26124988]
[1673217769246,0.05835411,16982.0,16981.0,4.55566988]
[1673217769752,0.23501087,16982.0,16981.0,4.25566988]
[1673217771987,0.23501087,16982.0,16981.0,3.55566988]
[1673217772245,0.23501087,16982.0,16981.0,3.26124988]
[1673217772509,0.23501087,16982.0,16981.0,3.55566988]
[1673217773543,0.23501087,16982.0,16981.0,4.25566988]
[1673217774339,0.23501087,16982.0,16981.0,3.96124988]
[1673217774347,0.23501087,16982.0,16981.0,4.25567988]
[1673217775097,0.23501087,16982.0,16981.0,4.25566988]
[1673217775357,0.23501087,16982.0,16981.0,3.96124988]
[1673217775599,0.23501087,16982.0,16981.0,4.25566988]
[1673217775851,0.23501087,16982.0,16981.0,3.96124988]
[1673217776105,0.23501087,16982.0,16981.0,4.25566988]
[1673217777881,1.11905329,16982.0,16981.0,4.25566988]
[1673217778145,1.11905329,16982.0,16981.0,4.07891109]
[1673217778389,1.38410324,16982.0,16981.0,4.07891109]
[1673217778602,1.11905329,16982.0,16981.0,4.07891109]
[1673217779154,1.38410324,16982.0,16981.0,4.07891109]
[1673217779659,1.38410324,16982.0,16981.0,3.37891109]
[1673217780152,1.38410324,16982.0,16981.0,4.07892109]
[1673217784442,1.11905329,16982.0,16981.0,4.07891109]
[1673217785916,1.11905329,16982.0,16981.0,4.25566988]
[1673217786080,1.11905329,16982.0,16981.0,3.55566988]
[1673217787084,1.11905329,16982.0,16981.0,4.25566988]
[1673217787598,0.05835411,16982.0,16981.0,4.25566988]
[1673217787839,0.05835411,16982.0,16981.0,4.82080806]
[1673217788364,0.05835411,16982.0,16981.0,5.35009746]
[1673217788619,0.05835411,16982.0,16981.0,4.82080806]
[1673217790170,0.05835411,16982.0,16981.0,5.34943963]
[1673217790414,0.05835411,16982.0,16981.0,4.82080806]
[1673217790701,0.23501087,16982.0,16981.0,4.25566988]
[1673217790913,1.11904856,16982.0,16981.0,4.25566988]
[1673217791425,1.11904856,16982.0,16981.0,4.07891109]
[1673217792444,1.11904856,16982.0,16981.0,4.25566988]
[1673217793632,1.11904856,16982.0,16981.0,3.88772788]
[1673217793871,1.11904856,16982.0,16981.0,3.71096909]
[1673217794153,1.38409851,16982.0,16981.0,3.71096909]
[1673217796806,1.38409851,16982.0,16981.0,3.01096909]
[1673217798089,1.38409851,16982.0,16981.0,3.71096909]
[1673217802452,1.38409851,16982.0,16981.0,3.41654909]
[1673217802712,1.38409851,16982.0,16981.0,3.71096909]
[1673217805550,1.38409851,16982.0,16981.0,3.01096909]
[1673217806570,1.38409851,16982.0,16981.0,3.71096909]
[1673217811060,1.38409851,16982.0,16981.0,3.71097909]
[1673217812430,1.38409851,16982.0,16981.0,3.41654909]
[1673217812706,1.38409851,16982.0,16981.0,3.71096909]
[1673217812926,1.38409851,16982.0,16981.0,4.07891109]
[1673217813175,1.38409851,16982.0,16981.0,3.71096909]
[1673217813659,1.38409851,16982.0,16981.0,3.24364909]
[1673217813660,1.56097304,16982.0,16981.0,3.24364909]
[1673217813922,1.56097304,16982.0,16981.0,3.19706983]
[1673217814181,2.00289965,16982.0,16981.0,3.19488492]
[1673217814429,1.56097304,16982.0,16981.0,3.19488492]
[1673217814692,2.00289965,16982.0,16981.0,3.19488492]
[1673217815198,1.56097304,16982.0,16981.0,3.19488492]
[1673217816192,1.56097304,16982.0,16981.0,3.1653864]
[1673217817931,1.7378497,16982.0,16981.0,3.1653864]
[1673217818426,1.7378497,16982.0,16981.0,3.13588788]
[1673217818693,2.07493005,16982.0,16981.0,2.45000434]
[1673217818959,2.60609744,16982.0,16981.0,2.45000434]
[1673217820218,2.60609744,16982.0,16981.0,2.44968534]
[1673217820219,2.26901709,16982.0,16981.0,2.44968534]
[1673217820733,2.25263698,16982.0,16981.0,2.44968534]
[1673217821512,2.07570364,16982.0,16981.0,2.44968534]
[1673217821775,2.03372964,16982.0,16981.0,2.44968534]
[1673217823540,2.47565625,16982.0,16981.0,2.44968534]
[1673217823791,2.03372964,16982.0,16981.0,2.44968534]
[1673217825557,2.03372964,16982.0,16981.0,2.74412534]
[1673217826288,2.03372964,16982.0,16981.0,2.44968534]
[1673217828860,1.50256225,16982.0,16981.0,2.44968534]
[1673217832479,1.94448886,16982.0,16981.0,2.44968534]
[1673217832744,1.67949559,16982.0,16981.0,2.44968534]
[1673217833814,1.50254272,16982.0,16981.0,2.44968534]
[1673217835198,1.50254272,16982.0,16981.0,2.74411534]
[1673217835529,1.50254272,16982.0,16981.0,2.44968534]
[1673217835776,1.50254272,16982.0,16981.0,2.74411534]
[1673217836032,1.94446933,16982.0,16981.0,2.44968534]
[1673217836281,1.50254272,16982.0,16981.0,2.44968534]
[1673217836783,1.94446933,16982.0,16981.0,2.44968534]
[1673217837228,1.94446933,16982.0,16981.0,1.74968534]
[1673217838285,1.67949559,16982.0,16981.0,2.44968534]
[1673217839086,1.50255251,16982.0,16981.0,2.44968534]
[1673217839608,1.94447912,16982.0,16981.0,2.44968534]
[1673217839853,1.50255251,16982.0,16981.0,2.44968534]
[1673217840084,1.94447912,16982.0,16981.0,2.44968534]
[1673217840312,1.50255251,16982.0,16981.0,2.44968534]
[1673217841293,1.50255251,16982.0,16981.0,2.74412534]
[1673217841818,1.94447912,16982.0,16981.0,2.74412534]
[1673217842070,1.67949559,16982.0,16981.0,2.74412534]
[1673217842850,1.94449407,16982.0,16981.0,2.74412534]
[1673217843070,1.50256746,16982.0,16981.0,2.74412534]
[1673217843572,1.67949559,16982.0,16981.0,2.44968534]
[1673217843819,2.05049054,16982.0,16981.0,2.44968534]
[1673217845078,1.69695925,16982.0,16981.0,2.44968534]
[1673217847616,2.05036165,16982.0,16981.0,2.44968534]
[1673217848375,1.69695925,16982.0,16981.0,2.44968534]
[1673217850435,1.69695925,16982.0,16981.0,1.177786]
[1673217850696,1.25503264,16982.0,16981.0,1.288893]
[1673217850951,1.69681561,16982.0,16981.0,1.288893]
[1673217851474,1.69681561,16982.0,16981.0,1.583343]
[1673217851738,2.05026404,16982.0,16981.0,1.583343]
[1673217852753,2.01151881,16982.0,16981.0,1.583343]
[1673217853738,2.0504563,16982.0,16981.0,1.583343]
[1673217853980,1.69700787,16982.0,16981.0,1.583343]
[1673217854230,1.69700787,16982.0,16981.0,1.288893]
[1673217854473,1.2502249,16982.0,16981.0,1.288893]
[1673217856451,1.2502249,16982.0,16981.0,0.7]
[1673217860494,1.69202907,16982.0,16981.0,0.7]
[1673217860743,1.69203033,16982.0,16981.0,0.7]
[1673217861006,1.2502249,16982.0,16981.0,0.7]
[1673217865570,1.69197284,16982.0,16981.0,0.7]
[1673217869109,2.05991484,16982.0,16981.0,0.7]
[1673217869997,1.6181669,16982.0,16981.0,0.7]
[1673217870746,1.2502249,16982.0,16981.0,0.7]
[1673217871000,1.69199667,16982.0,16981.0,0.7]
[1673217873630,2.05993867,16982.0,16981.0,0.7]
[1673217874385,1.6181669,16982.0,16981.0,0.7]
[1673217874606,1.69201183,16982.0,16981.0,0.7]
[1673217874863,1.69201162,16982.0,16981.0,0.69988648]
[1673217875323,1.2502249,16982.0,16981.0,0.69988648]
[1673217878906,1.6181669,16982.0,16981.0,0.69988648]
[1673217879149,1.6181669,16982.0,16980.0,0.588909]
[1673217879150,1.2502249,16982.0,16980.0,0.588909]
[1673217879397,1.65312501,16981.0,16980.0,0.588909]
[1673217880138,2.00657727,16981.0,16980.0,1.288909]
[1673217880386,2.00657727,16981.0,16980.0,1.292795]
[1673217880645,2.00657727,16981.0,16980.0,1.258795]
[1673217881142,2.02057727,16981.0,16980.0,1.293795]
[1673217884212,1.66712501,16981.0,16980.0,1.293795]
[1673217885463,1.66712501,16981.0,16980.0,0.735]
[1673217888516,1.22528741,16981.0,16980.0,0.735]
[1673217889821,1.66706021,16981.0,16980.0,0.735]
[1673217898365,1.66706021,16981.0,16980.0,0.77112]
[1673217901770,1.66706021,16981.0,16980.0,0.765907]
[1673217902034,1.66706021,16981.0,16980.0,0.07112]
[1673217902799,1.66706021,16981.0,16980.0,0.77112]
[1673217905574,1.22528741,16981.0,16980.0,0.77112]
[1673217905830,1.66707833,16981.0,16980.0,0.77112]
[1673217906348,1.66707876,16981.0,16980.0,0.77112]
[1673217906607,1.66707861,16981.0,16980.0,0.77112]
[1673217908826,1.66707861,16981.0,16980.0,0.07112]
[1673217909331,1.22528741,16981.0,16980.0,0.07112]
[1673217909577,1.66710703,16981.0,16980.0,0.07112]
[1673217909829,1.66712253,16981.0,16980.0,0.77112]
[1673217915764,1.66712253,16981.0,16980.0,0.07112]
[1673217917041,1.66712253,16981.0,16980.0,0.77112]
[1673217918538,1.69680465,16981.0,16980.0,0.77112]
[1673217922823,1.69680465,16981.0,16980.0,0.07112]
[1673217923044,1.66712253,16981.0,16980.0,0.07112]
[1673217923820,1.66712253,16981.0,16980.0,0.77112]
[1673217926069,2.02067752,16981.0,16980.0,0.77112]
[1673217926370,2.0206776,16981.0,16980.0,0.77112]
[1673217926584,2.02067758,16981.0,16980.0,0.77112]
[1673217927348,1.66712253,16981.0,16980.0,0.77112]
[1673217928809,1.69588478,16981.0,16980.0,0.77112]
[1673217929817,1.69588478,16981.0,16980.0,0.07112]
[1673217930780,1.69588478,16981.0,16980.0,0.77112]
[1673217934947,2.04941563,16981.0,16980.0,0.77112]
[1673217936833,2.04941563,16981.0,16980.0,0.07112]
[1673217937671,1.69588478,16981.0,16980.0,0.07112]
[1673217937900,1.66712253,16981.0,16980.0,0.77112]
[1673217943827,1.69642155,16981.0,16980.0,0.77112]
[1673217943998,1.69642155,16981.0,16980.0,0.07112]
[1673217945023,1.69642155,16981.0,16980.0,0.77112]
[1673217945524,1.69642155,16981.0,16980.0,1.360048]
[1673217950795,1.69642155,16981.0,16980.0,0.660048]
[1673217951298,1.69657906,16981.0,16980.0,0.660048]
[1673217951863,1.69657906,16981.0,16980.0,1.360048]
[1673217952115,1.25458643,16981.0,16980.0,1.360048]
[1673217952561,1.69658015,16981.0,16980.0,1.360048]
[1673217952806,1.66728113,16981.0,16980.0,1.360048]
[1673217957792,1.66728113,16981.0,16980.0,0.660048]
[1673217958032,1.69668318,16981.0,16980.0,0.660048]
[1673217958929,1.69668318,16981.0,16980.0,1.360048]
[1673217962826,1.66728113,16981.0,16980.0,1.360048]
[1673217964810,1.66728113,16981.0,16980.0,0.660048]
[1673217965853,1.66728113,16981.0,16980.0,1.360048]
[1673217968115,1.69711909,16981.0,16980.0,1.360048]
[1673217971901,1.69711909,16981.0,16980.0,0.660048]
[1673217972433,1.66728113,16981.0,16980.0,0.660048]
[1673217972897,1.66728113,16981.0,16980.0,1.360048]
[1673217977432,1.22528741,16981.0,16980.0,1.360048]
[1673217979051,1.22528741,16981.0,16980.0,0.660048]
[1673217979987,1.22528741,16981.0,16980.0,1.360048]
[1673217980798,1.2564616,16981.0,16980.0,1.360048]
[1673217984700,1.22528741,16981.0,16980.0,1.360048]
[1673217985754,1.66724198,16981.0,16980.0,1.360048]
[1673217986005,1.22528741,16981.0,16980.0,1.360048]
[1673217986774,1.66723896,16981.0,16980.0,1.360048]
[1673217987013,1.22528741,16981.0,16980.0,1.360048]
[1673217988301,1.25439482,16981.0,16980.0,1.360048]
[1673217989914,1.25439482,16981.0,16980.0,1.35994322]
[1673217990179,1.25439482,16981.0,16980.0,0.07101522]
[1673217991196,1.25439482,16981.0,16980.0,0.77101522]
[1673217993641,1.22528741,16981.0,16980.0,0.77101522]
[1673217994636,1.25441538,16981.0,16980.0,0.77101522]
[1673217995600,1.22528741,16981.0,16980.0,0.77101522]
[1673217997044,1.22528741,16981.0,16980.0,0.07101522]
[1673217998065,1.22528741,16981.0,16980.0,0.77101522]
[1673217998334,1.25473463,16981.0,16980.0,0.77101522]
[1673218003855,1.22528741,16981.0,16980.0,0.77101522]
[1673218004118,1.22528741,16981.0,16980.0,0.07101522]
[1673218004632,1.25441538,16981.0,16980.0,0.07101522]
[1673218005121,1.25441538,16981.0,16980.0,0.77101522]
[1673218007316,1.69630888,16981.0,16980.0,0.77101522]
[1673218007585,1.25441538,16981.0,16980.0,0.77101522]
[1673218007837,1.69632352,16981.0,16980.0,0.77101522]
[1673218008631,1.72592646,16981.0,16980.0,0.77101522]
[1673218009860,1.28401832,16981.0,16980.0,0.77101522]
[1673218010116,1.7259417,16981.0,16980.0,0.77101522]
[1673218010367,1.28401832,16981.0,16980.0,0.77101522]
[1673218011566,1.28401832,16981.0,16980.0,0.07101522]
[1673218012301,1.28401832,16981.0,16980.0,0.77101522]
[1673218012548,1.28401832,16981.0,16980.0,0.7709095]
[1673218012802,1.25441538,16981.0,16980.0,0.7709095]
[1673218018254,1.25441538,16981.0,16980.0,0.0709095]
[1673218018761,1.28358519,16981.0,16980.0,0.0709095]
[1673218019266,1.28358519,16981.0,16980.0,0.7709095]
[1673218022926,1.25441538,16981.0,16980.0,0.7709095]
[1673218025661,1.25441538,16981.0,16980.0,0.0709095]
[1673218026161,1.25441538,16981.0,16980.0,0.7709095]
[1673218028802,1.28369197,16981.0,16980.0,0.7709095]
[1673218031847,1.81400087,16981.0,16980.0,0.7709095]
[1673218032329,1.81400087,16981.0,16980.0,0.0709095]
[1673218032833,2.18194287,16981.0,16980.0,0.7709095]
[1673218033103,1.78472428,16981.0,16980.0,0.7709095]
[1673218033633,2.21161058,16981.0,16980.0,0.7709095]
[1673218033849,2.57955258,16981.0,16980.0,0.7709095]
[1673218034434,2.21161058,16981.0,16980.0,0.7709095]
[1673218036260,2.21161058,16981.0,16980.0,0.77083089]
[1673218038690,1.78472428,16981.0,16980.0,0.77083089]
[1673218038937,1.81354803,16981.0,16980.0,0.77083089]
[1673218040423,1.28323913,16981.0,16980.0,0.77083089]
[1673218042961,1.25441538,16981.0,16980.0,0.77083089]
[1673218048641,1.28441403,16981.0,16980.0,0.77083089]
[1673218049206,1.40643928,16981.0,16980.0,0.77083089]
[1673218049453,1.81472293,16981.0,16980.0,0.77083089]
[1673218050982,1.88500033,16981.0,16980.0,0.77083089]
[1673218051225,3.0233125,16981.0,16980.0,0.32888291]
[1673218051390,4.99501396,16981.0,16980.0,0.32888291]
[1673218052118,4.95101531,16981.0,16980.0,0.32888291]
[1673218052376,5.08601531,16981.0,16980.0,0.32888291]
[1673218053399,5.38601531,16981.0,16980.0,0.32888291]
[1673218053657,5.86568978,16981.0,16980.0,0.32888291]
[1673218053866,6.00168978,16981.0,16980.0,0.12094334]
[1673218055260,5.70168978,16981.0,16980.0,0.12094334]
[1673218055583,0.5,16980.0,16976.0,0.41701357]
[1673218055722,0.79452507,16978.0,16977.0,0.7]
[1673218055981,1.12677479,16978.0,16977.0,0.7]
[1673218056254,2.00581248,16978.0,16977.0,0.7]
[1673218056997,2.11981248,16978.0,16977.0,0.7]
[1673218058227,2.11981248,16978.0,16973.0,0.5]
[1673218058228,0.5,16977.0,16973.0,0.5]
[1673218058484,0.23767789,16976.0,16974.0,1.29010206]
[1673218059050,0.23767789,16976.0,16975.0,0.58908]
[1673218059099,0.44119996,16977.0,16975.0,1.89667211]
[1673218059310,0.44119996,16977.0,16976.0,0.367942]
[1673218059536,0.44119996,16977.0,16975.0,1.52872627]
[1673218059819,1.32558009,16977.0,16975.0,1.08908]
[1673218060322,0.44119996,16977.0,16976.0,0.7]
[1673218060557,1.34058154,16977.0,16976.0,0.7]
[1673218060808,1.32558154,16977.0,16976.0,0.7]
[1673218061321,1.34058154,16977.0,16976.0,0.7]
[1673218061682,1.32558154,16977.0,16976.0,0.7]
[1673218061828,1.33358154,16977.0,16976.0,0.7]
[1673218063333,0.18447998,16977.0,16976.0,0.7]
[1673218065295,0.44919996,16977.0,16976.0,0.7]
[1673218065543,0.18447998,16977.0,16976.0,0.7]
[1673218069541,0.18447998,16977.0,16976.0,0.695]